bitfinex-derivatives/quotes_SOLF0:USTF0_20250623
["timestamp","ask_amount","ask_price","bid_price","bid_amount"]
[1750719980576,10.60460417,144.41,144.4,33.47]
[1750719980972,6.9195,144.41,144.4,33.47]
[1750719981279,48.24510417,144.43,144.4,33.47]
[1750719981674,6.9195,144.41,144.4,33.47]
[1750719981874,10.60460417,144.41,144.4,23.0886]
[1750719982076,6.9214,144.37,144.36,30.81]
[1750719982378,10.61388552,144.37,144.36,30.81]
[1750719982681,44.56,144.38,144.36,37.7317]
[1750719982883,44.56,144.38,144.36,30.81]
[1750719983375,51.481,144.38,144.36,30.81]
[1750719983880,44.56,144.38,144.36,37.7319]
[1750719984781,3.69248552,144.4,144.36,30.81]
[1750719984982,44.0,144.42,144.36,34.50248552]
[1750719985172,47.69248552,144.43,144.37,4.6002]
[1750719985379,44.0,144.43,144.37,4.6002]
[1750719985674,44.0,144.43,144.38,3.69248552]
[1750719985978,6.9177,144.45,144.42,6.9187]
[1750719986280,6.9177,144.45,144.38,3.69248552]
[1750719986281,44.0,144.46,144.4,3.69248552]
[1750719986680,3.69248552,144.44,144.37,4.6002]
[1750719986872,47.69248552,144.46,144.39,3.69248552]
[1750719987068,6.9179,144.45,144.41,6.9192]
[1750719987274,6.9179,144.45,144.41,3.69248552]
[1750719987472,44.0,144.46,144.41,3.69248552]
[1750719987873,50.9174,144.46,144.43,6.9185]
[1750719988075,50.9174,144.46,144.41,3.69248552]
[1750719988275,44.0,144.46,144.41,3.69248552]
[1750719988475,597.58,144.48,144.39,8.40412286]
[1750719988678,601.27248552,144.48,144.4,3.69248552]
[1750719988877,6.9179,144.45,144.42,6.919]
[1750719989186,601.27248552,144.48,144.4,3.69248552]
[1750719989187,597.58,144.48,144.4,3.69248552]
[1750719989379,597.58,144.48,144.4,12.09660838]
[1750719989683,3.69248552,144.47,144.4,12.09660838]
[1750719989871,3.69248552,144.47,144.38,56.60618429]
[1750719989872,597.58,144.48,144.39,8.40412286]
[1750719990075,3.69248552,144.44,144.38,61.31]
[1750719990281,47.69248552,144.46,144.38,69.71412286]
[1750719990686,3.69248552,144.44,144.38,61.31]
[1750719991184,3.69248552,144.44,144.38,69.71412286]
[1750719991574,10.61088552,144.44,144.4,6.9197]
[1750719991982,3.69248552,144.44,144.4,6.9197]
[1750719992180,6.9189,144.43,144.38,69.71412286]
[1750719992373,3.69248552,144.44,144.38,61.31]
[1750719992577,3.69248552,144.44,144.38,17.31]
[1750719992776,3.69248552,144.42,144.38,17.31]
[1750719992985,47.69248552,144.42,144.38,17.31]
[1750719993191,6.9203,144.4,144.38,17.31]
[1750719993373,3.69248552,144.4,144.38,17.31]
[1750719993577,3.69248552,144.4,144.36,30.81]
[1750719993777,6.9212,144.38,144.36,30.81]
[1750719993986,6.9212,144.38,144.36,17.31]
[1750719994189,6.9212,144.38,144.35,9.36]
[1750719994492,47.69248552,144.42,144.35,9.36]
[1750719994691,47.69248552,144.42,144.35,13.05248552]
[1750719994896,6.9203,144.4,144.36,6.9216]
[1750719995191,6.9203,144.4,144.35,13.05248552]
[1750719996686,6.9203,144.4,144.37,6.9214]
[1750719997491,47.69248552,144.42,144.35,9.36]
[1750719997492,3.69037069,144.41,144.35,9.36]
[1750719998689,6.9207,144.39,144.36,6.9219]
[1750719998987,47.69037069,144.42,144.35,9.36]
[1750719999384,6.9203,144.4,144.37,6.921]
[1750719999690,47.69037069,144.42,144.37,6.921]
[1750719999888,6.92,144.41,144.37,6.921]
[1750720000289,47.69037069,144.42,144.37,6.921]
[1750720000490,6.9203,144.4,144.37,6.921]
[1750720002399,6.9197,144.41,144.38,6.9209]
[1750720002586,6.9197,144.41,144.34,27.17037069]
[1750720002587,3.69037069,144.4,144.34,31.88412286]
[1750720002889,44.0,144.42,144.34,31.88412286]
[1750720002890,44.0,144.42,144.36,8.40412286]
[1750720003089,50.9193,144.42,144.38,6.9205]
[1750720003285,50.9193,144.42,144.37,2.2831]
[1750720003492,50.9193,144.42,144.39,6.9202]
[1750720004387,3.69037069,144.41,144.37,10.68722286]
[1750720004581,3.69037069,144.39,144.34,31.88412286]
[1750720005193,6.9217,144.37,144.34,38.80672286]
[1750720005593,3.69176691,144.35,144.34,23.48]
[1750720005800,54.61346691,144.37,144.34,30.4029]
[1750720006092,3.69176691,144.37,144.34,23.48]
[1750720006791,10.61416691,144.35,144.34,23.48]
[1750720008002,3.69176691,144.35,144.3,17.32]
[1750720008201,44.02,144.34,144.3,17.32]
[1750720008402,6.9239,144.32,144.3,17.32]
[1750720008602,44.02,144.34,144.3,17.32]
[1750720008804,44.02,144.34,144.29,4.6971]
[1750720009000,3.69176691,144.33,144.29,13.10122286]
[1750720009200,3.69176691,144.33,144.29,4.6971]
[1750720010205,6.9246,144.31,144.29,4.6971]
[1750720010597,6.9246,144.31,144.28,40.5757]
[1750720010598,3.69560609,144.31,144.28,33.65]
[1750720010804,3.69560609,144.33,144.28,33.65]
[1750720011405,3.69560609,144.29,144.28,33.65]
[1750720011797,44.02,144.34,144.26,2.2281]
[1750720012004,3.69560609,144.31,144.25,8.40412286]
[1750720012307,3.69560609,144.31,144.24,8.40412286]
[1750720012510,6.926,144.28,144.24,15.33142286]
[1750720012703,3.69560609,144.29,144.24,8.40412286]
[1750720012901,6.9272,144.25,144.24,8.40412286]
[1750720013103,3.69560609,144.27,144.23,4.3888]
[1750720013504,44.02,144.3,144.23,4.3888]
[1750720013505,44.02,144.3,144.23,8.08440609]
[1750720013808,44.02,144.3,144.23,4.3888]
[1750720014010,3.69560609,144.29,144.23,4.3888]
[1750720014702,6.927,144.26,144.23,4.3888]
[1750720015305,3.6977246,144.26,144.23,4.3888]
[1750720015614,3.6977246,144.26,144.19,25.73412286]
[1750720015615,3.6977246,144.24,144.19,25.73412286]
[1750720015815,3.6977246,144.24,144.19,17.33]
[1750720016008,10.6258246,144.24,144.2,6.9292]
[1750720016699,47.2377246,144.26,144.19,17.33]
[1750720017312,54.1646246,144.26,144.22,6.9286]
[1750720017612,3.6977246,144.26,144.22,6.9286]
[1750720017809,10.6245246,144.26,144.22,6.9286]
[1750720018315,6.9272,144.25,144.22,6.9286]
[1750720018503,3.6977246,144.26,144.22,6.9286]
[1750720018906,6.9272,144.25,144.22,6.9286]
[1750720020411,10.6245246,144.26,144.23,6.9281]
[1750720020607,47.25645954,144.31,144.24,3.69645954]
[1750720020808,169.43,144.4,144.24,3.69645954]
[1750720020809,8.32527084,144.46,144.28,3.69645954]
[1750720021001,47.25645954,144.39,144.32,3.69645954]
[1750720021200,43.56,144.39,144.33,4.7757]
[1750720021407,43.56,144.39,144.34,3.69645954]
[1750720021806,3.69645954,144.41,144.34,3.69645954]
[1750720022007,10.61595954,144.41,144.38,6.9209]
[1750720022213,3.69645954,144.41,144.34,3.69645954]
[1750720022912,6.9203,144.4,144.36,6.9216]
[1750720023214,3.69645954,144.41,144.33,4.7757]
[1750720023405,6.9213,144.38,144.33,8.47215954]
[1750720024010,3.69098194,144.37,144.33,4.7757]
[1750720024209,49.88982983,144.38,144.33,4.7757]
[1750720024411,49.88982983,144.38,144.3,13.78]
[1750720024922,6.32982983,144.36,144.3,13.78]
[1750720025518,6.9232,144.34,144.3,20.7044]
[1750720025721,6.9232,144.34,144.3,13.78]
[1750720026021,6.9235,144.33,144.3,13.78]
[1750720026514,6.32982983,144.33,144.3,13.78]
[1750720026718,6.9243,144.31,144.3,13.78]
[1750720027116,6.32982983,144.33,144.28,25.68]
[1750720027512,6.9253,144.29,144.28,25.68]
[1750720027818,43.56,144.34,144.28,25.68]
[1750720028214,49.89258673,144.37,144.28,75.57258673]
[1750720028806,6.33117718,144.34,144.28,25.68]
[1750720029017,6.9237,144.33,144.28,25.68]
[1750720029320,6.9237,144.33,144.29,6.925]
[1750720029717,6.923,144.34,144.28,25.68]
[1750720029913,6.923,144.34,144.3,6.9243]
[1750720030421,6.33117718,144.36,144.28,25.68]
[1750720031010,6.9237,144.33,144.29,6.9249]
[1750720031717,6.923,144.34,144.3,6.9247]
[1750720032016,6.33111888,144.35,144.28,43.0]
[1750720032216,6.9242,144.32,144.28,49.9255]
[1750720034009,6.33111888,144.33,144.28,43.0]
[1750720034213,49.89111888,144.33,144.28,43.0]
[1750720034620,6.9246,144.31,144.28,43.0]
[1750720035017,49.89111888,144.33,144.28,43.0]
[1750720035518,6.33111888,144.29,144.28,32.0764]
[1750720035720,50.4853,144.29,144.28,32.0764]
[1750720035923,43.56,144.29,144.27,22.6]
[1750720036312,6.9257,144.28,144.27,22.6]
[1750720037021,13.25681888,144.28,144.27,22.6]
[1750720037613,6.33111888,144.28,144.22,11.84]
[1750720038223,43.56,144.29,144.22,11.84]
[1750720038925,6.33111888,144.28,144.22,11.84]
[1750720039520,43.56,144.29,144.22,11.84]
[1750720039721,6.33111888,144.27,144.22,11.84]
[1750720040018,6.9265,144.27,144.22,11.84]
[1750720040220,49.89111888,144.29,144.22,11.84]
[1750720040618,6.9273,144.25,144.22,18.7685]
[1750720041023,49.89111888,144.29,144.22,18.7685]
[1750720041219,6.33111888,144.25,144.22,11.84]
[1750720041615,6.928,144.24,144.22,11.84]
[1750720041816,6.33111888,144.25,144.22,11.84]
[1750720042316,6.928,144.24,144.22,11.84]
[1750720042516,6.33111888,144.25,144.22,11.84]
[1750720043014,13.8463,144.34,144.22,11.84]
[1750720043210,598.2,144.37,144.22,11.84]
[1750720043211,6.33111888,144.3,144.22,11.84]
[1750720043419,6.9275,144.25,144.22,11.84]
[1750720043616,6.33111888,144.28,144.22,11.84]
[1750720044523,6.927,144.26,144.23,6.9281]
[1750720044720,6.33111888,144.28,144.23,6.9281]
[1750720044917,6.33111888,144.28,144.22,11.84]
[1750720045116,6.9275,144.25,144.22,18.7684]
[1750720045319,6.33111888,144.28,144.22,11.84]
[1750720045712,6.9275,144.25,144.22,11.84]
[1750720046015,6.33111888,144.28,144.22,11.84]
[1750720046212,6.33111888,144.26,144.22,11.84]
[1750720046419,13.25921888,144.23,144.22,11.84]
[1750720046626,6.33111888,144.23,144.21,30.14]
[1750720046920,6.9291,144.21,144.2,10.24]
[1750720047119,56.46021888,144.21,144.2,10.24]
[1750720047616,6.9301,144.19,144.18,3.60366328]
[1750720047821,49.53111888,144.21,144.18,3.60366328]
[1750720048128,6.9299,144.2,144.18,3.60366328]
[1750720049322,43.2,144.21,144.18,3.60366328]
[1750720049523,6.33111888,144.25,144.18,3.60366328]
[1750720049729,49.53111888,144.29,144.2,6.33111888]
[1750720049926,49.53111888,144.29,144.21,47.8295]
[1750720050620,50.1254,144.29,144.22,6.33111888]
[1750720050823,49.53111888,144.32,144.22,6.33111888]
[1750720051024,6.9249,144.3,144.24,6.33111888]
[1750720051226,43.2,144.32,144.24,6.33111888]
[1750720051425,6.33111888,144.34,144.25,43.2]
[1750720051730,6.33111888,144.34,144.3,6.9248]
[1750720052232,6.9237,144.33,144.29,6.9251]
[1750720053127,6.9237,144.33,144.3,6.9247]
[1750720053322,6.9237,144.33,144.28,2.3084]
[1750720053632,13.25411888,144.34,144.28,2.3084]
[1750720053832,6.33111888,144.34,144.28,2.3084]
[1750720054027,13.25411888,144.34,144.28,2.3084]
[1750720054229,6.923,144.34,144.28,2.3084]
[1750720054429,6.33111888,144.34,144.28,2.3084]
[1750720054937,13.25411888,144.34,144.3,6.9245]
[1750720055326,654.97361888,144.35,144.28,2.3084]
[1750720055523,648.05111888,144.35,144.28,2.3084]
[1750720055726,641.72,144.35,144.28,2.3084]
[1750720055930,6.33111888,144.33,144.29,6.9249]
[1750720056133,6.33111888,144.33,144.28,2.3084]
[1750720056329,13.25461888,144.33,144.29,6.925]
[1750720056534,648.05111888,144.35,144.28,2.3084]
[1750720057133,6.9232,144.34,144.31,6.9242]
[1750720057538,6.33111888,144.45,144.28,2.3084]
[1750720057539,6.9205,144.39,144.32,49.53111888]
[1750720057841,49.53111888,144.38,144.28,60.24364174]
[1750720058039,49.53111888,144.38,144.29,2.325]
[1750720058230,49.53111888,144.38,144.29,4.7225]
[1750720058922,49.53111888,144.38,144.29,11.05361888]
[1750720059129,49.53111888,144.38,144.29,19.45774174]
[1750720060033,49.53111888,144.38,144.29,11.05361888]
[1750720060335,6.922,144.36,144.32,6.9234]
[1750720060738,49.53111888,144.38,144.3,17.32]
[1750720060936,6.9229,144.35,144.31,6.924]
[1750720061332,6.9237,144.33,144.3,17.32]
[1750720061930,6.9239,144.32,144.3,17.32]
[1750720063339,6.9235,144.33,144.3,17.32]
[1750720064042,43.2,144.38,144.3,17.32]
[1750720064244,6.33111888,144.4,144.3,23.65111888]
[1750720064539,6.9212,144.38,144.3,23.65111888]
[1750720065031,6.9212,144.38,144.34,6.9224]
[1750720065842,6.9205,144.39,144.35,6.9224]
[1750720066138,6.9205,144.39,144.32,43.18]
[1750720066328,6.9211,144.38,144.34,6.9225]
[1750720066533,6.9211,144.38,144.32,43.18]
[1750720067029,6.9211,144.38,144.34,6.9225]
[1750720067531,6.9206,144.39,144.32,43.18]
[1750720067736,6.33111888,144.44,144.33,6.33111888]
[1750720067938,6.33111888,144.46,144.37,6.33111888]
[1750720068137,6.33111888,144.46,144.38,49.8915]
[1750720068334,6.33111888,144.46,144.38,71.5015]
[1750720068848,13.24851888,144.46,144.42,6.9189]
[1750720069141,43.18,144.47,144.38,71.5015]
[1750720069737,43.18,144.47,144.39,6.33111888]
[1750720070035,49.51111888,144.5,144.39,6.33111888]
[1750720070242,6.9159,144.49,144.41,6.33111888]
[1750720070534,6.9159,144.49,144.43,6.33111888]
[1750720070735,6.9159,144.49,144.44,2.3479]
[1750720070943,6.9154,144.5,144.44,2.3479]
[1750720071130,6.33111888,144.52,144.45,4.6633]
[1750720071335,6.9152,144.5,144.46,6.9169]
[1750720071537,6.9152,144.5,144.45,4.6633]
[1750720072732,6.33111888,144.52,144.45,4.6633]
[1750720072942,6.33111888,144.52,144.45,11.5808]
[1750720073329,6.33111888,144.5,144.45,4.6633]
[1750720073837,6.917,144.47,144.45,4.6633]
[1750720074037,6.917,144.47,144.46,29.2]
[1750720074436,6.9163,144.48,144.46,29.2]
[1750720074638,43.16,144.53,144.46,29.2]
[1750720074935,49.49111888,144.53,144.46,29.2]
[1750720075145,49.47625183,144.53,144.46,29.2]
[1750720075343,49.47625183,144.53,144.47,6.9166]
[1750720075537,6.915,144.51,144.47,6.9166]
[1750720076137,6.9153,144.5,144.47,6.9166]
[1750720076337,49.47625183,144.53,144.47,6.9166]
[1750720076744,49.47625183,144.53,144.46,29.2]
[1750720077247,6.9158,144.49,144.46,29.2]
[1750720077639,6.9165,144.48,144.46,29.2]
[1750720080247,6.9166,144.47,144.46,29.2]
[1750720080443,13.23285183,144.47,144.46,29.2]
[1750720082340,6.9164,144.48,144.46,29.2]
[1750720082548,42.78,144.49,144.46,29.2]
[1750720083149,6.9162,144.48,144.46,29.2]
[1750720083344,6.31625183,144.48,144.46,29.2]
[1750720083543,6.9166,144.47,144.46,29.2]
[1750720083744,6.31625183,144.48,144.39,7.0161]
[1750720083943,6.31625183,144.45,144.39,7.0161]
[1750720085052,6.9189,144.43,144.4,6.9199]
[1750720085452,6.31625183,144.44,144.39,7.0161]
[1750720085653,6.31625183,144.42,144.38,21.61]
[1750720085858,42.78,144.45,144.38,21.61]
[1750720085859,42.78,144.43,144.38,21.61]
[1750720086054,6.9205,144.39,144.38,21.61]
[1750720086252,6.31625183,144.42,144.38,21.61]
[1750720086749,6.9198,144.41,144.38,28.5309]
[1750720088251,6.9201,144.4,144.38,21.61]
[1750720088654,6.31625183,144.42,144.38,21.61]
[1750720088853,6.9196,144.41,144.38,21.61]
[1750720089856,42.78,144.43,144.38,21.61]
[1750720090260,6.31625183,144.45,144.39,6.9203]
[1750720090957,6.9194,144.42,144.39,6.9203]
[1750720091353,6.31625183,144.43,144.4,6.9196]
[1750720091562,6.9183,144.44,144.4,6.9196]
[1750720091763,6.31625183,144.45,144.38,26.2504]
[1750720091960,6.31625183,144.45,144.38,28.6742]
[1750720092264,13.23415183,144.45,144.42,6.9189]
[1750720092651,13.23415183,144.45,144.38,28.6742]
[1750720092853,13.23415183,144.45,144.41,6.9191]
[1750720093074,13.23415183,144.45,144.38,28.6742]
[1750720093366,6.31625183,144.45,144.38,28.6742]
[1750720093764,6.31625183,144.45,144.42,6.9189]
[1750720093963,49.11625183,144.46,144.38,28.6742]
[1750720094360,6.9169,144.47,144.39,6.31625183]
[1750720094759,6.9169,144.47,144.43,6.9182]
[1750720094956,6.9169,144.47,144.39,6.31625183]
[1750720095761,6.9172,144.46,144.39,6.31625183]
[1750720096071,6.9172,144.46,144.43,6.9183]
[1750720096870,6.9168,144.47,144.39,6.31625183]
[1750720097072,42.8,144.49,144.39,6.31625183]
[1750720097273,49.11625183,144.49,144.39,6.31625183]
[1750720097470,6.9172,144.46,144.43,6.9184]
[1750720097666,42.8,144.45,144.38,26.2504]
[1750720097874,142.08879232,144.54,144.38,26.2504]
[1750720097875,42.8,144.44,144.38,26.2504]
[1750720098069,6.919,144.43,144.38,26.2504]
[1750720098274,6.32469808,144.44,144.38,26.2504]
[1750720098473,6.32469808,144.4,144.38,21.61]
[1750720099070,13.24499808,144.4,144.38,21.61]
[1750720099670,6.32469808,144.4,144.38,21.61]
[1750720099876,6.9196,144.41,144.38,21.61]
[1750720104174,6.32469808,144.42,144.38,21.61]
[1750720104668,6.9196,144.41,144.38,21.61]
[1750720106775,6.92,144.4,144.38,21.61]
[1750720107473,6.32469808,144.42,144.38,21.61]
[1750720108080,6.9198,144.41,144.38,21.61]
[1750720108284,6.32469808,144.42,144.38,21.61]
[1750720108469,6.92,144.41,144.38,21.61]
[1750720108668,6.32469808,144.42,144.38,21.61]
[1750720108978,48.80469808,144.42,144.38,21.61]
[1750720109179,6.9204,144.4,144.38,21.61]
[1750720109381,48.80469808,144.42,144.38,21.61]
[1750720109783,6.9205,144.39,144.38,21.61]
[1750720109979,42.48,144.42,144.38,21.61]
[1750720110780,42.48,144.42,144.39,6.9204]
[1750720111080,6.9195,144.41,144.38,21.61]
[1750720111473,6.9195,144.41,144.37,28.71]
[1750720112578,6.9195,144.41,144.38,6.9207]
[1750720113283,49.3992,144.42,144.39,6.9203]
[1750720113472,49.3992,144.42,144.36,8.40412286]
[1750720113676,6.9195,144.41,144.38,6.9207]
[1750720114980,42.48,144.42,144.39,6.9203]
[1750720115380,42.48,144.42,144.36,8.40412286]
[1750720116780,6.9195,144.41,144.38,6.9208]
[1750720116980,42.48,144.42,144.36,8.40412286]
[1750720117182,6.933,144.5,144.36,8.40412286]
[1750720117380,6.933,144.49,144.39,6.32469808]
[1750720117575,13.25769808,144.49,144.4,7.0494]
[1750720117775,13.849,144.49,144.41,14.72882094]
[1750720117983,13.849,144.49,144.41,57.20882094]
[1750720118182,13.849,144.49,144.45,6.9171]
[1750720118383,13.849,144.49,144.42,8.40412286]
[1750720118587,6.933,144.49,144.43,6.3173671]
[1750720118891,6.933,144.51,144.45,6.3173671]
[1750720119184,6.933,144.51,144.46,2.229]
[1750720119385,42.48,144.53,144.46,4.5582]
[1750720119584,42.48,144.53,144.47,27.3784]
[1750720119779,42.48,144.53,144.5,6.9149]
[1750720121088,6.9134,144.54,144.5,6.9149]
[1750720121384,605.0928,144.55,144.51,6.9147]
[1750720121783,605.0928,144.55,144.51,6.9144]
[1750720121982,6.9128,144.55,144.51,6.9144]
[1750720122189,6.9133,144.54,144.47,33.6957671]
[1750720123075,6.9129,144.55,144.47,33.6957671]
[1750720123278,6.9129,144.55,144.48,24.28]
[1750720123483,6.9121,144.57,144.49,6.3173671]
[1750720123982,6.9121,144.57,144.53,6.9135]
[1750720124180,6.9123,144.56,144.53,6.9135]
[1750720124575,42.46,144.58,144.49,48.7773671]
[1750720124773,6.9119,144.57,144.51,6.3173671]
[1750720124975,42.46,144.58,144.54,6.9129]
[1750720125180,49.3717,144.58,144.51,6.3173671]
[1750720125387,48.7773671,144.61,144.52,2.3233]
[1750720125891,597.74,144.62,144.53,6.3173671]
[1750720126092,646.5173671,144.62,144.53,48.7773671]
[1750720126293,6.9108,144.6,144.56,6.912]
[1750720128680,42.44,144.62,144.54,2.2121]
[1750720128890,42.44,144.62,144.52,2.3233]
[1750720129192,6.3173671,144.58,144.52,2.3233]
[1750720129394,42.44,144.62,144.5,2.2771]
[1750720129395,6.3173671,144.56,144.5,2.2771]
[1750720129594,42.44,144.55,144.5,2.2771]
[1750720130282,6.9134,144.54,144.51,6.9147]
[1750720130899,49.3531,144.55,144.52,6.9142]
[1750720131487,42.44,144.55,144.52,6.9142]
[1750720131687,6.9125,144.56,144.5,2.2771]
[1750720132192,6.3173671,144.57,144.5,2.2771]
[1750720132193,6.912,144.57,144.5,2.2771]
[1750720132393,6.912,144.57,144.51,6.3173671]
[1750720133195,49.3515,144.58,144.54,6.913]
[1750720133497,48.7573671,144.61,144.51,6.3173671]
[1750720133693,48.7573671,144.61,144.52,2.38]
[1750720133999,6.9106,144.6,144.56,6.912]
[1750720134395,48.7573671,144.61,144.53,8.5494671]
[1750720134589,6.9114,144.58,144.55,6.9125]
[1750720134899,48.7573671,144.61,144.53,2.2321]
[1750720135196,48.7573671,144.61,144.54,6.913]
[1750720135397,48.7573671,144.61,144.53,2.2321]
[1750720135398,6.3173671,144.59,144.53,2.2321]
[1750720135592,13.2503671,144.59,144.5,2.2771]
[1750720136187,6.3173671,144.57,144.5,2.2771]
[1750720136389,6.9132,144.55,144.51,6.9144]
[1750720136795,48.7573671,144.57,144.51,6.9144]
[1750720137301,6.9131,144.55,144.51,6.9144]
[1750720137499,6.9131,144.55,144.52,6.9142]
[1750720137901,48.7573671,144.57,144.5,9.1921]
[1750720138599,6.9141,144.53,144.5,9.1921]
[1750720139190,6.9136,144.54,144.5,2.2771]
[1750720139799,6.914,144.53,144.5,9.1921]
[1750720142705,6.9135,144.54,144.51,6.9147]
[1750720142902,6.3173671,144.56,144.5,2.2771]
[1750720143404,6.3173671,144.56,144.5,9.192]
[1750720143906,42.44,144.57,144.5,2.2771]
[1750720144102,48.7573671,144.57,144.5,2.2771]
[1750720144505,6.9131,144.55,144.52,6.9139]
[1750720144702,48.7573671,144.57,144.5,2.2771]
[1750720145110,6.3173671,144.61,144.52,6.3173671]
[1750720145308,6.3173671,144.59,144.51,42.2]
[1750720145709,6.912,144.57,144.53,6.9135]
[1750720146111,6.9116,144.58,144.51,42.2]
[1750720146305,6.3173671,144.59,144.51,42.2]
[1750720147107,6.9115,144.58,144.55,6.9124]
[1750720147411,6.3173671,144.59,144.51,59.49]
[1750720147614,6.3173671,144.61,144.52,6.3173671]
[1750720147809,6.9112,144.59,144.52,6.3173671]
[1750720148415,639.68,144.62,144.52,6.3173671]
[1750720148611,645.9973671,144.62,144.52,6.3173671]
[1750720148913,6.9106,144.6,144.57,6.9115]
[1750720149719,6.30931128,144.61,144.51,65.79931128]
[1750720149914,6.30931128,144.59,144.51,59.49]
[1750720150308,6.30931128,144.57,144.51,17.29]
[1750720150509,48.50931128,144.57,144.51,17.29]
[1750720151112,6.9131,144.55,144.52,6.9139]
[1750720151522,6.9131,144.55,144.51,17.29]
[1750720151523,48.50931128,144.57,144.51,17.29]
[1750720151906,6.9126,144.56,144.53,6.9138]
[1750720152419,6.9126,144.56,144.52,6.914]
[1750720152616,6.9129,144.55,144.52,6.914]
[1750720152816,48.50931128,144.57,144.51,17.29]
[1750720153016,6.911,144.59,144.52,48.50931128]
[1750720153518,603.78931128,144.62,144.56,6.912]
[1750720153713,6.30931128,144.6,144.52,42.2]
[1750720153909,6.30931128,144.58,144.51,17.29]
[1750720154112,6.30931128,144.58,144.53,6.9137]
[1750720154314,6.30931128,144.58,144.51,17.29]
[1750720155615,6.912,144.57,144.51,17.29]
[1750720156621,6.9124,144.56,144.51,17.29]
[1750720157023,6.9124,144.56,144.53,6.9135]
[1750720158515,6.9121,144.57,144.51,17.29]
[1750720158722,6.30931128,144.58,144.51,17.29]
[1750720158926,6.30931128,144.58,144.53,6.9135]
[1750720159225,6.9126,144.56,144.53,6.9135]
[1750720160814,6.9129,144.55,144.52,6.9141]
[1750720161024,3.68212755,144.55,144.51,17.29]
[1750720161433,6.9136,144.54,144.51,17.29]
[1750720161721,3.68212755,144.55,144.51,17.29]
[1750720161929,6.9134,144.54,144.51,17.29]
[1750720162228,45.88212755,144.55,144.51,17.29]
[1750720162732,6.9134,144.54,144.51,17.29]
[1750720163026,45.88212755,144.55,144.51,17.29]
[1750720163217,49.1129,144.55,144.51,17.29]
[1750720163417,42.2,144.55,144.51,17.29]
[1750720163819,42.2,144.55,144.52,6.9142]
[1750720164325,49.1132,144.55,144.52,6.9142]
[1750720164926,6.9133,144.54,144.51,6.9145]
[1750720165314,42.2,144.55,144.49,27.91742286]
[1750720166123,49.1131,144.55,144.51,6.9143]
[1750720166313,49.1131,144.55,144.5,8.40412286]
[1750720166919,6.912,144.57,144.51,8.40412286]
[1750720167122,3.68212755,144.58,144.51,8.40412286]
[1750720167325,6.9143,144.52,144.5,8.40412286]
[1750720167522,6.9143,144.52,144.49,19.5133]
[1750720167523,10.59642755,144.52,144.49,19.5133]
[1750720168043,3.68212755,144.53,144.49,26.4286]
[1750720168830,6.9143,144.52,144.49,26.4286]
[1750720169033,6.9143,144.52,144.5,31.7]
[1750720170635,3.68212755,144.53,144.5,31.7]
[1750720170636,6.9147,144.51,144.5,31.7]
[1750720170834,3.68212755,144.53,144.5,31.7]
[1750720171834,41.92,144.54,144.5,31.7]
[1750720172841,45.60212755,144.57,144.51,2.2842]
[1750720173634,3.68212755,144.53,144.5,31.7]
[1750720173829,3.68212755,144.55,144.5,31.7]
[1750720174234,3.68212755,144.55,144.5,44.99]
[1750720174439,6.9138,144.53,144.5,51.9049]
[1750720174642,3.68212755,144.55,144.5,44.99]
[1750720175140,6.9145,144.52,144.5,44.99]
[1750720176043,6.9147,144.51,144.5,44.99]
[1750720176241,41.92,144.57,144.5,44.99]
[1750720176541,45.60212755,144.57,144.51,6.9146]